[Event "Israel-ch Semi-final 2022"]
[Site "Ramat Gan"]
[Date "2022.05.09"]
[Round "1.6"]
[White "Aharonovich, Itamar"]
[Black "Reprun, Nadejda"]
[Result "1-0"]
[ECO "D46"]
[WhiteElo "2324"]
[BlackElo "1954"]
[Annotator "TA"]
[PlyCount "108"]
[EventDate "2022.05.09"]
[EventType "swiss"]
[EventCountry "ISR"]
[SourceTitle "playchess.com"]
[Source "ChessBase"]
[SourceQuality "1"]
[TimeControl "40/5400+30:1800+30"]

{[%evp 21,108,42,64,46,65,47,60,64,55,61,62,54,47,-26,-26,-17,0,0,0,-4,0,0,-6,0,0,0,0,0,0,0,0,0,0,0,0,0,0,0,9,0,10,11,111,128,131,120,147,146,146,144,188,185,181,137,225,170,223,219,222,218,260,255,441,431,458,464,502,506,616,557,523,300,793,789,688,769,769,762,762,762,759,719,1089,977,2978,2414,29993,29988,29993]} 1. c4 c6 {[%emt 1:31:00]} 2. d4 d5 {[%emt 0:00:30]} 3. Nf3 {[%emt 0:00:55]} Nf6 {[%emt 0:00:00]} 4. e3 {[%emt 0:00:32]} e6 {[%emt 0:00:00]} 5. Bd3 {[%emt 0:00:41]} Bd6 {[%emt 0:00:00]} 6. Nbd2 {[%emt 0:00:28]} Nbd7 {[%emt 0:00:00]} 7. O-O {[%emt 0:00:08]} O-O {[%emt 0:00:00]} 8. e4 {[%emt 0:00:24]} dxe4 {[%emt 0:00:00]} 9. Nxe4 {[%emt 0:01:22]} Nxe4 {[%emt 0:00:00]} 10. Bxe4 {[%emt 0:00:06]} h6 {[%emt 0:00:00]} 11. Bc2 {[%emt 0:12:40]} c5 {[%emt 0:00:00]} 12. Qd3 {[%emt 0:01:14][%csl Gc2][%cal Rd3h7] D46: Semi-Slav: 5 e3 Nbd7 6 Bd3, Black avoids the Meran.} Nf6 {[%emt 0:00:00] Prevents Qh7+.} 13. Rd1 {[%emt 0:03:02]} Qc7 $1 {[%emt 0:00:00]} 14. dxc5 {[%emt 0:01:01] White is slightly better.} Bxc5 {[%emt 0:00:00]} 15. b4 $1 {[%emt 0:01:50]} Be7 {[%emt 0:00:00]} 16. Bb2 {[%emt 0:01:37] Inhibits e5. Threatens to win with Bxf6. White is more active.} Rd8 {[%emt 0:00:00] [#]} 17. Be5 $146 {[%emt 0:05:43]} ({White should try} 17. Qe2 $14) ({Predecessor:} 17. Qe2 Bd7 18. Be5 Qc8 19. Bc3 Be8 20. Ne5 Qc7 21. a4 Rac8 22. Rxd8 Rxd8 23. Qe3 {1-0 (52) Krasenkow,M (2605)-Krzyzanowski,M (2518) Warsaw 2020}) 17... Rxd3 $11 {[%emt 0:00:00]} 18. Bxc7 {[%emt 0:00:07]} Rxd1+ {[%emt 0:00:00]} ({Don't play} 18... Rc3 19. Bb3 $16) 19. Rxd1 {[%emt 0:00:09]} Bd7 {[%emt 0:00:00]} 20. Ne5 {[%emt 0:03:16]} Be8 {[%emt 0:00:00]} 21. Bd6 {[%emt 0:04:45]} Kf8 {[%emt 0:00:00]} 22. f4 {[%emt 0:08:40]} Bxd6 {[%emt 0:00:00]} 23. Rxd6 {[%emt 0:00:12]} Ke7 {[%emt 0:00:00]} 24. Rd3 {[%emt 0:02:25]} Rc8 {[%emt 0:00:00]} 25. Ra3 {[%emt 0:13:18]} a6 {[%emt 0:00:00][%cal Of6d5]} 26. Bd1 {[%emt 0:00:59]} Nd7 {[%emt 0:00:00]} 27. Nxd7 {[%emt 0:05:56]} Bxd7 {[%emt 0:00:00][%mdl 4096] Endgame KRB-KRB} 28. Be2 {[%emt 0:03:42]} Be8 {[%emt 0:00:00]} 29. Kf2 {[%emt 0:00:38]} Rd8 {[%emt 0:00:00]} 30. Ke3 {[%emt 0:00:51] Against Rd2} Bc6 {[%emt 0:00:00]} 31. g3 {[%emt 0:00:22]} e5 {[%emt 0:00:00]} (31... g5 $11 {remains equal.}) 32. fxe5 $16 {[%emt 0:01:07]} Ke6 {[%emt 0:00:00] [#]} 33. Ra5 {[%emt 0:00:14]} f6 {[%emt 0:00:00]} 34. exf6 {[%emt 0:00:45]} Kxf6 {[%emt 0:00:00]} 35. Bd3 {[%emt 0:01:19]} g6 {[%emt 0:00:00]} 36. a4 {[%emt 0:28:02][%cal Ba2a4,Ba4a5][%mdl 32]} Re8+ {[%emt 0:02:38]} 37. Kd2 {[%emt 0:00:00]} Be4 {[%emt 0:02:29]} (37... Re5 $16 {was worth a try.}) 38. Be2 {[%emt 0:00:00]} g5 {[%emt 0:03:26] [#]} (38... Ke6 $142 39. Rc5 Kd7) 39. Rc5 $1 $18 {[%emt 0:00:00]} Re7 {[%emt 0:01:32]} 40. a5 {[%emt 0:00:00]} Bg6 {[%emt 0:04:57]} 41. Rd5 {[%emt 0:18:15]} h5 $2 {[%emt 0:31:31]} (41... Be4) 42. Rd6+ {[%emt 0:01:08]} Kg7 {[%emt 0:00:17]} 43. Bf3 {[%emt 0:00:48]} Bf7 {[%emt 0:02:27]} 44. c5 {[%emt 0:02:07]} g4 {[%emt 0:00:39]} 45. Bg2 {[%emt 0:00:22] Hoping for Rb6.} Bc4 {[%emt 0:00:41]} 46. Kc3 {[%emt 0:00:22]} Bb5 {[%emt 0:00:00]} (46... Be2 47. Bd5 Bf3) 47. Rb6 {[%emt 0:00:00]} Re3+ {[%emt 0:00:00]} 48. Kd4 {[%emt 0:00:00]} Rd3+ {[%emt 0:00:00]} 49. Ke5 {[%emt 0:00:00]} Re3+ {[%emt 0:00:00]} 50. Kf4 {[%emt 0:00:00]} Rb3 {[%emt 0:00:00]} 51. Rxb7+ {[%emt 0:00:00]} Kf8 {[%emt 0:00:00]} 52. c6 {[%emt 0:00:00][%cal Bc5c6,Bc6c7][%mdl 32]} Rxb4+ {[%emt 0:00:00]} 53. Ke5 {[%emt 0:00:00] Threatening mate with Kf6.} Ra4 {[%emt 0:00:00]} 54. c7 {[%emt 0:00:00]} Bd7 {[%emt 0:05:23] Weighted Error Value: White=0.15 (very precise) /Black=0.46} 1-0

[Event "Israel-ch Semi-final 2022"]
[Site "Ramat Gan"]
[Date "2022.05.16"]
[Round "2.1"]
[White "Dvoirys, Semen I."]
[Black "Stolyarsky, Yegor"]
[Result "1-0"]
[ECO "C90"]
[WhiteElo "2439"]
[BlackElo "2174"]
[Annotator "TA"]
[PlyCount "59"]
[EventDate "2022.05.09"]
[EventType "swiss"]
[EventCountry "ISR"]
[SourceTitle "playchess.com"]
[Source "ChessBase"]
[SourceQuality "1"]
[TimeControl "40/5400+30:1800+30"]

{[%evp 20,59,29,20,16,18,23,30,22,11,60,59,107,81,101,0,0,0,0,0,237,231,228,185,182,189,354,356,524,518,635,513,488,468,670,679,657,666,1064,609,1038,927]} 1. e4 {[%emt 1:31:00]} e5 {[%emt 0:05:09]} 2. Nf3 {[%emt 0:00:00]} Nc6 {[%emt 0:00:44]} 3. Bb5 {[%emt 0:00:00]} a6 {[%emt 0:00:08]} 4. Ba4 {[%emt 0:00:00]} Nf6 {[%emt 0:00:06]} 5. O-O {[%emt 0:00:00]} Be7 {[%emt 0:00:25]} 6. Re1 {[%emt 0:00:00]} b5 {[%emt 0:00:19]} 7. Bb3 {[%emt 0:00:00]} d6 {[%emt 0:00:06]} 8. c3 {[%emt 0:00:00]} Na5 {[%emt 0:00:39]} 9. Bc2 {[%emt 0:00:00]} c5 {[%emt 0:00:17]} 10. d4 {[%emt 0:00:00]} cxd4 {[%emt 0:01:30]} 11. cxd4 {[%emt 0:00:00]} Bg4 {[%emt 0:00:08] The modern move. C90: Closed Ruy Lopez with 7...d6: Early deviations.} 12. dxe5 {[%emt 0:00:00]} Bxf3 {[%emt 0:00:22][%mdl 64] [#] Remove Defender} 13. Qxf3 {[%emt 0:00:00]} dxe5 {[%emt 0:00:08] White has an edge.} 14. Qg3 {[%emt 0:00:00][%csl LRe5,LRg7] [#]} Rc8 $146 {[%emt 0:06:12]} (14... O-O $11) ({Predecessor:} 14... Qc7 15. Nc3 O-O 16. Bd1 Kh8 17. h4 Rad8 18. Bg5 Nc6 19. Bxf6 Bxf6 20. Nd5 Qd6 {½-½ (29) Elwood,D (1714)-Cox,R (1760) ICCF email 2017}) 15. Nc3 $14 {[%emt 0:00:00]} ({Wrong is} 15. Qxg7 $2 Rg8 16. Qxg8+ Nxg8 $19) 15... Nc6 {[%emt 0:11:58]} (15... O-O $14 {feels stronger.}) 16. Rd1 {[%emt 0:00:00]} ({Much weaker is} 16. Qxg7 Rg8 17. Qh6 Nd4 $14) 16... Qc7 {[%emt 0:06:35]} 17. Qxg7 {[%emt 0:00:00] White is more active.} ({Better is} 17. Bb3 $16 g6 18. Bh6) 17... Rg8 $11 {[%emt 0:00:37]} 18. Qh6 {[%emt 0:00:00] And now Be3 would win.} Nd4 {[%emt 0:01:16]} 19. Bb3 $36 {[%emt 0:00:00][%mdl 2048] White is pushing.} Nf3+ $2 {[%emt 0:11:08] [#] Pair of Knights!} (19... Qd7 $1 $11 20. h3 Rg6) 20. Kf1 $1 $18 {[%emt 0:00:00] The board is on fire.} Nd4 {[%emt 0:06:39]} 21. Be3 {[%emt 0:00:00]} Rg6 {[%emt 0:02:44]} 22. Qh3 {[%emt 0:00:00] Strongly threatening Nd5.} Bc5 $2 {[%emt 0:01:04]} (22... Qd7 23. Qxd7+ Nxd7 24. Bxd4 exd4) 23. Nd5 {[%emt 0:00:00]} Nxd5 {[%emt 0:00:43]} (23... Qd7 {was called for.} 24. Nxf6+ Rxf6) 24. Bxd5 {[%emt 0:00:00] White is clearly winning.} Nc2 {[%emt 0:02:09]} 25. Bxc5 {[%emt 0:00:00]} Qxc5 {[%emt 0:00:57]} 26. Qf5 {[%emt 0:00:00] Against Rf6} Rc7 {[%emt 0:01:06]} (26... Nd4 $142 27. Qxf7+ Kd8 28. Qxh7 (28. Be6 Rc7 $11) 28... Rf6) 27. Qxe5+ {[%emt 0:00:00]} Kf8 {[%emt 0:01:02]} 28. Rac1 {[%emt 0:00:00]} Re7 {[%emt 0:01:24]} 29. Qh8+ {[%emt 0:00:00]} Rg8 {[%emt 0:00:06]} 30. Qxh7 {[%emt 0:00:00] Weighted Error Value: White=0.13 (very precise) /Black=0.77} 1-0

[Event "Israel-ch Semi-final 2022"]
[Site "Ramat Gan"]
[Date "2022.05.16"]
[Round "2.2"]
[White "Zemach, Nadav"]
[Black "Birnboim, Nathan"]
[Result "1-0"]
[ECO "A63"]
[WhiteElo "2238"]
[BlackElo "2383"]
[Annotator "TA"]
[PlyCount "80"]
[EventDate "2022.05.09"]
[EventType "swiss"]
[EventCountry "ISR"]
[SourceTitle "playchess.com"]
[Source "ChessBase"]
[SourceQuality "1"]
[TimeControl "40/5400+30:1800+30"]

{[%evp 24,80,32,17,34,32,18,18,52,48,123,0,66,65,94,78,91,87,68,16,37,42,30,14,222,226,220,204,291,300,293,300,295,277,297,292,344,337,337,337,337,337,330,319,292,278,402,419,413,391,535,533,948,947,2433,2423,1654,1575,1050]} 1. d4 {[%emt 0:00:02]} Nf6 {[%emt 0:21:01]} 2. c4 {[%emt 0:00:06]} c5 {[%emt 0:00:02]} 3. d5 {[%emt 0:00:06]} e6 {[%emt 0:00:06]} 4. Nc3 {[%emt 0:00:20]} exd5 {[%emt 0:00:15]} 5. cxd5 {[%emt 0:00:03]} d6 {[%emt 0:00:04]} 6. g3 {[%emt 0:00:07]} g6 {[%emt 0:00:05]} 7. Bg2 {[%emt 0:00:13]} Bg7 {[%emt 0:00:03]} 8. Nf3 {[%emt 0:00:04]} O-O {[%emt 0:00:04]} 9. O-O {[%emt 0:00:05]} a6 {[%emt 0:00:01]} 10. a4 {[%emt 0:00:09]} Nbd7 {[%emt 0:00:07]} 11. Bf4 {[%emt 0:00:42]} Qe7 {[%emt 0:00:09]} 12. h3 {[%emt 0:03:39] 12.h3 has lost popularity.} Rb8 {[%emt 0:00:58]} 13. e4 {[%emt 0:02:32]} b5 {[%emt 0:02:58] A63: Modern Benoni: Fianchetto Variation: 9...Nbd7.} 14. axb5 {[%emt 0:00:32]} axb5 {[%emt 0:00:03]} 15. Ra7 {[%emt 0:00:18][%cal Oe4e5]} Ne8 {[%emt 0:07:06] The position is equal.} 16. Re1 {[%emt 0:02:10][%cal Oe4e5] Strongly threatening e5!} b4 {[%emt 0:13:43] [#]} ({Better is} 16... Qd8 $1 $14) 17. Na4 {[%emt 0:00:22] [#]} (17. Bg5 $2 f6 18. e5 fxg5 $19) (17. e5 $1 $16 {Black must now prevent Bg5.} Qd8 18. e6 bxc3 19. bxc3 (19. exd7 Bxd7 20. bxc3 Bxc3 $15) (19. e7 Qb6 $11) 19... Bxc3 20. e7 (20. exd7 Bxd7 21. Nd2 Bg7 $11)) 17... Bb7 $146 {[%emt 0:04:30]} (17... Rb7 $11 18. Ra6 Rb5) ({Predecessor:} 17... Rb7 18. Ra6 f6 19. Rc6 Rb8 20. Nxc5 Nxc5 21. Rxc5 g5 22. Rxc8 Rxc8 23. Bd2 Qa7 24. Bxb4 {1-0 (35) Sorial,H-Doghri,N (2350) Cairo 1996}) 18. Qd3 $14 {[%emt 0:06:11]} f6 {[%emt 0:14:34]} 19. Qb5 {[%emt 0:06:05]} Ne5 {[%emt 0:00:57]} 20. Bxe5 {[%emt 0:14:52]} fxe5 {[%emt 0:00:22]} 21. Nd2 {[%emt 0:00:02]} ({White should try} 21. Nb6 $14 Rf7 22. Qa5) 21... Bh6 {[%emt 0:03:26]} 22. Nc4 {[%emt 0:07:43]} Qf6 {[%emt 0:01:12]} 23. f3 {[%emt 0:02:43] Active counter play!} Bxd5 {[%emt 0:03:52] This move loses the game for Black.} 24. Qxb8 $18 {[%emt 0:01:19]} ({Don't blunder} 24. Qd7 $2 Rf7 25. exd5 Rxd7 26. Rxd7 Qg5 $19) 24... Bxc4 {[%emt 0:00:04]} 25. Nb6 $40 {[%emt 0:03:29][%cal Ba4b6,Bb6d7,Bd7f6,Bf6e8][%mdl 160] White is out for blood.} (25. Qb7 Rf7 26. Qb8 Rxa7 27. Qxa7 Qg5 $11) 25... Ng7 {[%emt 0:09:41]} (25... Be6 $142 26. Kh2 (26. Qb7 Rf7 $16) 26... c4) 26. Nd7 {[%emt 0:06:14] The board is on fire.} Rxb8 {[%emt 0:00:34]} 27. Nxf6+ {[%emt 0:00:02]} Kh8 {[%emt 0:00:12]} 28. Rea1 {[%emt 0:00:48]} Rf8 {[%emt 0:03:14]} 29. Ra8 {[%emt 0:01:47]} Ne6 {[%emt 0:00:17]} 30. R1a7 {[%emt 0:02:43][%csl Gf6][%cal Ra7h7]} Bg7 {[%emt 0:01:31]} 31. Rxf8+ {[%emt 0:01:48]} Nxf8 {[%emt 0:00:04]} 32. Ne8 {[%emt 0:00:38][%csl LRd6,LRg7]} Bh6 {[%emt 0:00:07]} 33. Nxd6 {[%emt 0:01:21]} Be3+ {[%emt 0:00:10]} 34. Kh2 {[%emt 0:00:25]} Be2 {[%emt 0:02:42]} (34... Be6 {keeps fighting.} 35. Bf1 Bd4) 35. Nf7+ {[%emt 0:15:40]} Kg8 {[%emt 0:00:03]} 36. Nxe5 {[%emt 0:00:05]} b3 {[%emt 0:02:50]} 37. Rb7 {[%emt 0:02:25] White is clearly winning.} Bd1 {[%emt 0:05:49]} 38. Bf1 {[%emt 0:01:18]} Bd4 {[%emt 0:00:29]} 39. Bc4+ {[%emt 0:00:15]} Kh8 {[%emt 0:00:04]} 40. Nf7+ {[%emt 0:01:39]} Kg7 {[%emt 0:01:12] Weighted Error Value: White=0.11 (very precise) /Black=0.49} 1-0

[Event "Israel-ch Semi-final 2022"]
[Site "Ramat Gan"]
[Date "2022.05.16"]
[Round "2.3"]
[White "Ben Ari, Yannay"]
[Black "Poleg, Matan"]
[Result "1/2-1/2"]
[ECO "E11"]
[WhiteElo "2409"]
[BlackElo "2225"]
[Annotator "TA"]
[PlyCount "94"]
[EventDate "2022.05.09"]
[EventType "swiss"]
[EventCountry "ISR"]
[SourceTitle "playchess.com"]
[Source "ChessBase"]
[SourceQuality "1"]
[TimeControl "40/5400+30:1800+30"]

{[%evp 11,94,12,11,0,11,-22,21,6,22,25,44,0,41,0,25,0,0,0,12,0,1,23,0,-5,0,0,0,0,0,0,0,0,0,0,0,0,0,0,-4,-19,-27,-49,-28,-179,0,0,0,-108,-34,-44,-12,-11,0,-109,-104,-154,-139,-174,-120,-109,-101,-117,-117,-190,0,0,9,9,12,10,8,10,10,10,30,0,0,0,0,0,0,0,0,0,0]} 1. d4 {[%emt 0:00:05]} Nf6 {[%emt 0:01:20]} 2. c4 {[%emt 0:00:10]} e6 {[%emt 0:00:39]} 3. Nf3 {[%emt 0:00:16]} d5 {[%emt 0:00:52]} 4. g3 {[%emt 0:00:11]} Bb4+ {[%emt 0:00:21]} 5. Bd2 {[%emt 0:00:12]} Be7 {[%emt 0:00:06]} 6. Bg2 {[%emt 0:00:04]} O-O {[%emt 0:00:25]} 7. Qc2 {[%emt 0:00:31] E11: Bogo-Indian.} Nbd7 $1 {[%emt 0:00:54][%mdl 4] is now more promising than 7...c6.} 8. h4 {[%emt 0:00:55]} c5 {[%emt 0:06:13]} 9. cxd5 {[%emt 0:00:40]} exd5 {[%emt 0:00:17]} 10. Nc3 {[%emt 0:02:37]} Re8 {[%emt 0:07:18] [#]} 11. Rd1 $146 {[%emt 0:10:59]} ({Predecessor:} 11. O-O h6 12. Bf4 a6 13. Rad1 c4 14. Ne5 Nb6 15. b3 Bb4 16. bxc4 dxc4 17. e4 {0-1 (45) Gelfand,B (2676)-Anand,V (2753) chess24.com INT 2020}) 11... c4 {[%emt 0:08:05]} 12. Bf4 {[%emt 0:18:45]} a6 {[%emt 0:14:52]} 13. a4 {[%emt 0:04:52]} Bb4 {[%emt 0:10:32]} 14. O-O {[%emt 0:04:01]} Nb6 {[%emt 0:01:26]} 15. Ne5 {[%emt 0:01:45]} Be6 {[%emt 0:00:45]} 16. Ra1 {[%emt 0:15:36]} Ba5 {[%emt 0:12:22]} 17. Rfd1 {[%emt 0:09:43]} Rc8 {[%emt 0:03:32]} 18. Bg5 {[%emt 0:07:51]} h6 {[%emt 0:01:18]} 19. Bxf6 {[%emt 0:00:04]} Qxf6 {[%emt 0:00:25]} 20. e4 {[%emt 0:00:47]} Red8 {[%emt 0:02:35]} 21. Rac1 {[%emt 0:10:08]} Bb4 {[%emt 0:11:58]} 22. Nxd5 {[%emt 0:03:07]} Nxd5 {[%emt 0:00:35]} 23. exd5 {[%emt 0:00:02]} Bxd5 {[%emt 0:00:49]} 24. Bxd5 {[%emt 0:06:43]} Rxd5 {[%emt 0:00:02]} 25. Qe4 {[%emt 0:01:33]} Qe6 {[%emt 0:02:06]} 26. Qf3 $1 {[%emt 0:00:35]} b5 {[%emt 0:01:53]} 27. b3 $2 {[%emt 0:00:10]} (27. Rc2 $11 {and White has nothing to worry.}) 27... Rdd8 $2 {[%emt 0:01:29]} ({Better is} 27... c3 $19 {Threatens to win with ...c2.} 28. Qd3 Rdd8 29. axb5 axb5 30. Qxb5 c2 31. Qxb4 cxd1=N 32. Rxd1 Rc2) 28. bxc4 {[%emt 0:00:28]} bxc4 {[%emt 0:00:07]} 29. Rc2 {[%emt 0:01:07] [#]} (29. Ng4 $1 $11) 29... a5 {[%emt 0:01:38]} (29... c3 $1 $17 30. Qe4 Re8) 30. Ng4 $15 {[%emt 0:00:56]} c3 {[%emt 0:03:59]} 31. d5 $1 {[%emt 0:00:01]} Qe8 {[%emt 0:00:15]} 32. Qf5 {[%emt 0:01:03]} (32. Re2 $11 {remains equal.} Qf8 33. Ne5) 32... Qxa4 $17 {[%emt 0:01:40]} 33. Ne5 {[%emt 0:00:02]} (33. Rd4 $142) 33... Rc7 {[%emt 0:00:35]} 34. Kg2 {[%emt 0:00:55]} Qb5 {[%emt 0:01:02]} ({Black should try} 34... Bf8 $19 35. Rcc1 Ba3) 35. Qf3 {[%emt 0:00:24]} Rd6 {[%emt 0:00:50]} 36. Ng4 {[%emt 0:00:40]} a4 {[%emt 0:00:48]} 37. Ne3 {[%emt 0:00:08]} (37. Ne5 $17 {is a better defense.}) 37... Qd7 $2 {[%emt 0:01:23]} (37... Rf6 $19 38. Qe4 Re7) 38. Qe4 $11 {[%emt 0:00:10]} Ba5 {[%emt 0:01:06][%cal Bb4a5,Ba5b6,Bb6c5][%mdl 32]} 39. Ra1 {[%emt 0:00:40]} Bb6 {[%emt 0:02:02]} 40. Nc4 {[%emt 0:00:02][%mdl 1024] White has compensation.} f5 $132 {[%emt 0:00:13][%mdl 2048] Black is not keeping still} 41. Qf4 {[%emt 0:31:29]} Rf6 {[%emt 0:30:53]} 42. d6 {[%emt 0:00:00]} Rc8 {[%emt 0:00:00] [#] Strongly threatening ...Qc6+.} 43. Kh2 {[%emt 0:00:00]} Bc5 {[%emt 0:00:00][%cal Rc5d6] The position is equal.} 44. Rd1 {[%emt 0:00:00] Black must now prevent Ne5.} Rd8 {[%emt 0:00:00]} 45. Rxc3 {[%emt 0:00:00]} Bxd6 {[%emt 0:00:00]} 46. Nxd6 {[%emt 0:00:00]} Rxd6 {[%emt 0:00:00]} 47. Rxd6 {[%emt 0:00:00]} Qxd6 {[%emt 0:04:20] Weighted Error Value: White=0.21 (precise) /Black=0.23 (precise)} 1/2-1/2

[Event "Israel-ch Semi-final 2022"]
[Site "Ramat Gan"]
[Date "2022.05.16"]
[Round "2.4"]
[White "Levin, Guy"]
[Black "Chernomordik, Pavel"]
[Result "1/2-1/2"]
[ECO "E60"]
[WhiteElo "2354"]
[BlackElo "2178"]
[Annotator "TA"]
[PlyCount "54"]
[EventDate "2022.05.09"]
[EventType "swiss"]
[EventCountry "ISR"]
[SourceTitle "playchess.com"]
[Source "ChessBase"]
[SourceQuality "1"]
[TimeControl "40/5400+30:1800+30"]

{[%evp 18,54,54,52,65,57,60,62,68,60,81,45,64,60,59,55,49,52,62,23,34,0,0,0,0,0,0,0,0,0,0,0,0,0,0,0,0,0,0]} 1. Nf3 {[%emt 0:00:03]} d6 {[%emt 0:00:37]} 2. d4 {[%emt 0:00:06]} g6 {[%emt 0:00:37]} 3. g3 {[%emt 0:00:05]} Bg7 {[%emt 0:00:06]} 4. Bg2 {[%emt 0:00:04]} c5 {[%emt 0:00:21]} 5. O-O {[%emt 0:00:40]} cxd4 {[%emt 0:03:20]} 6. Nxd4 {[%emt 0:02:06]} Nf6 {[%emt 0:00:14]} 7. c4 {[%emt 0:03:32]} O-O {[%emt 0:00:11]} 8. b3 {[%emt 0:01:06]} Qa5 {[%emt 0:03:51]} 9. Bb2 {[%emt 0:05:56]} a6 {[%emt 0:07:50]} 10. Nc3 {[%emt 0:03:04]} Qh5 {[%emt 0:05:00] E60: King's Indian: Unusual lines and Fianchetto Variation without Nc3.} 11. e3 {[%emt 0:16:20]} Bg4 {[%emt 0:03:54]} 12. Qd2 {[%emt 0:02:25]} e5 {[%emt 0:11:29] White is slightly better.} 13. Nc2 {[%emt 0:03:42] White is more active.} (13. Bxb7 Ra7 14. Bg2 exd4 15. Qxd4 Qc5 $15) 13... Nc6 {[%emt 0:04:37][%cal Oe5e4]} 14. Nd5 {[%emt 0:12:01] [#]} (14. Qxd6 $6 Rad8 15. Qc7 Rd7 $11) 14... Rad8 $146 {[%emt 0:07:32]} ({Predecessor:} 14... Nxd5 15. Qxd5 Rad8 16. e4 Kh8 17. f3 Be6 18. Qd3 f5 19. Ba3 Rf7 20. b4 Qg5 {0-1 (48) Splichal,S (2115)-Sluka,R (2304) Tatranske Zruby 2013}) 15. Nxf6+ {[%emt 0:17:59]} Bxf6 {[%emt 0:00:12]} 16. Nb4 {[%emt 0:00:02]} Nxb4 {[%emt 0:09:05]} 17. Qxb4 {[%emt 0:00:02]} Bf3 {[%emt 0:00:01]} 18. Bxf3 {[%emt 0:01:19]} Qxf3 {[%emt 0:00:04]} 19. Rfd1 {[%emt 0:06:28]} h5 $1 {[%emt 0:03:33] The position is equal.} 20. Rd5 {[%emt 0:08:38]} (20. Rxd6 $2 a5 21. Qd2 Rxd6 22. Qxd6 Rd8 $19) 20... h4 {[%emt 0:09:27]} 21. Qe1 {[%emt 0:00:08]} hxg3 {[%emt 0:04:20]} ({Much less strong is} 21... h3 22. Qf1 $16) 22. hxg3 {[%emt 0:01:34]} Kg7 {[%emt 0:05:54] [#] ( -> ...Rh8)} 23. Qd1 {[%emt 0:00:10]} Qe4 {[%emt 0:00:28]} 24. Qd3 {[%emt 0:02:50]} Qg4 {[%emt 0:07:29] Strongly threatening ...Rh8.} 25. Qd1 $1 {[%emt 0:00:32]} ({But not} 25. Rxd6 $2 Rxd6 26. Qxd6 Rd8 $19) 25... Qe4 {[%emt 0:01:12] Threatens to win with ...Rh8.} 26. Qd3 {[%emt 0:03:11]} Qg4 {[%emt 0:01:26] [#] ...Rh8 is the strong threat.} 27. Qd1 {[%emt 0:02:26]} ({Not} 27. Rxd6 $2 Rxd6 28. Qxd6 Rd8 $19) 27... Qe4 {[%emt 0:01:12] Weighted Error Value: White=0.07 (flawless) /Black=0.03 (flawless)} 1/2-1/2